Cogmind - Beta 14 @@@ ROGUE MODE // 2025.03.24 @ 12:47:34 // Winter2019/RPGLIKE Player: Lava Result: Destroyed by Y-45 Defender with Heavy Assault Rifle Performance ------------- Evolutions (0) 0 Regions Visited (2) 400 Robots Destroyed (25) 125 Value Destroyed (826) 826 Prototype IDs (0) 0 Alien Tech Used (0) 0 Bonus (21) 21 TOTAL SCORE: 1372 Bonus ------- Follower Combat Kills 21 Cogmind --------- Core Integrity 0/600 Matter 300/300 Energy 250/250 System Corruption 2% Temperature Cool (9) Movement Treading (160) Location -10/Mines Parts ------- > --- POWER (1) -------- Ion Engine > --- PROPULSION (2) --- Light Treads Light Treads > --- UTILITY (3) ------ Visual Processing Unit Sensor Array Signal Interpreter > --- WEAPON (2) ------- Improved Light Cannon Improved Light Cannon > --- INVENTORY (2) ---- Grenade Launcher Mace Peak State ------------ > --- POWER ------------ Ion Engine > --- PROPULSION ------- Light Treads Light Treads > --- UTILITY ---------- Visual Processing Unit Sensor Array Signal Interpreter > --- WEAPON ----------- Improved Light Cannon Improved Light Cannon > --- INVENTORY -------- Mace [Rating: 11] Favorites ----------- Power Ion Engine Engine Ion Engine Propulsion Light Treads Treads Light Treads Utility Sensor Array Device Sensor Array Processor Signal Interpreter Weapon Improved Light Cannon Energy Gun Small Laser Ballistic Gun Light Assault Rifle Ballistic Cannon Improved Light Cannon Launcher Grenade Launcher Build | -11 -10 -10 ------- Run | Yrd Mat Min Slots Evolved 4 | 4 . . Power . | . . . Propulsion 1 | 1 . . Utility 2 | 2 . . Weapon 1 | 1 . . Parts Attached 15 | 5 8 2 Power 1 | 1 . . Engine 1 | 1 . . Core . | . . . Reactor . | . . . Propulsion 2 | 2 . . Treads 2 | 2 . . Leg . | . . . Wheel . | . . . Hover . | . . . Flight . | . . . Utility 4 | . 4 . Device 2 | . 2 . Storage . | . . . Processor 2 | . 2 . Hackware . | . . . Protection . | . . . Artifact . | . . . Weapon 8 | 2 4 2 Energy Gun 1 | 1 . . Energy Cannon . | . . . Ballistic Gun 1 | 1 . . Ballistic Cannon 5 | . 4 1 Launcher 1 | . . 1 Special Weapon . | . . . Impact Weapon . | . . . Slashing Weapon . | . . . Piercing Weapon . | . . . Special Melee Weapon . | . . . Unidentified Prototypes . | . . . Parts Lost . | . . . Power . | . . . Propulsion . | . . . Utility . | . . . Weapon . | . . . Highest Loss Streak . | . . . To Critical Strikes . | . . . Average Slot Usage (%) 96 | . 95 100 Engine 12 | . 12 12 Treads 25 | . 25 25 Device 13 | . 13 12 Processor 20 | . 19 25 Ballistic Cannon 22 | . 23 19 Launcher 1 | . . 5 Peak Build Rating 11 | 5 11 11 Average Rating 10 | 3 10 10 On Entrance 5 | . 5 11 Naked Turns . | . . . Heaviest Build 15 | 7 15 14 Greatest Support 40 | 40 40 40 Greatest Overweight (x) . | . . . Average Overweight (x) . | . . . Largest Inventory Capacity 2 | 1 2 2 Average Capacity 1 | 1 1 2 Most Carried 2 | 1 2 2 Average Carried 1 | . 1 2 Final Capacity 2 | 1 2 2 Final Carried 2 | . 2 2 Class Distribution -------------------- 71% | Skirmisher 28% | Mutant Dominant Class ---------------- Skirmisher | -10/Materials Skirmisher | -10/Mines Resources | -11 -10 -10 ----------- Run | Yrd Mat Min Matter Collected 916 | 216 525 175 Remotely . | . . . Salvage Created 588 | . 437 151 Parts 30 | . 24 6 Haulers Intercepted . | . . . Recyclers Shooed . | . . . Parts Field Recycled . | . . . Retrieved Matter . | . . . Parts Self-Destructed . | . . . Prevented . | . . . Kills | -11 -10 -10 ------- Run | Yrd Mat Min Combat Hostiles Destroyed 18 | . 12 6 Cannons 18 | . 12 6 Classes Destroyed 6 | . 4 2 Worker 1 | . 1 . Tunneler 1 | . . 1 Operator 2 | . 2 . Watcher 3 | . 3 . Grunt 16 | . 12 4 Demolisher 2 | . . 2 Best Kill Streak 9 | . 9 5 Combat Bots Only 7 | . 7 4 Max Kills in Single Turn 1 | . 1 1 Gunslinging . | . . . Exploded . | . . . Melee . | . . . Uniques/NPCs Destroyed . | . . . Combat | -11 -10 -10 -------- Run | Yrd Mat Min Hostile Shots Fired 76 | . 41 35 Missed 21 | . 13 8 Damage Taken 1029 | . 390 639 Core 821 | . 310 511 Absorbed by Shields . | . . . Redirected to Core 719 | . 259 460 Core Remaining (%) 100 | 100 . . Volleys Fired 66 | . 50 16 Largest 2 | . 2 2 Hottest 78 | . 78 78 Shots Fired 131 | . 99 32 Gun . | . . . Cannon 131 | . 99 32 Launcher . | . . . Special . | . . . Kinetic 131 | . 99 32 Thermal . | . . . Explosive . | . . . Electromagnetic . | . . . Robot Hit Streak 13 | . 6 13 Robot Miss Streak 8 | . 8 2 Penetration Max . | . . . Secondary Targets . | . . . Shots Hit Robots 74 | . 51 23 Core Hits 32 | . 21 11 Critical Kills . | . . . Critical Parts Destroyed . | . . . Critical Strikes 1 | . 1 . Blast 1 | . 1 . Melee Attacks . | . . . Impact . | . . . Slashing . | . . . Piercing . | . . . Sneak Attacks . | . . . Combat Hostiles . | . . . Follow-up Attacks . | . . . Damage Inflicted 1672 | . 1182 490 Guns . | . . . Cannons 1672 | . 1182 490 Explosions . | . . . Melee . | . . . Ramming . | . . . Kinetic 1672 | . 1182 490 Thermal . | . . . Explosive . | . . . Electromagnetic . | . . . Impact . | . . . Slashing . | . . . Piercing . | . . . Highest Corruption 2 | . 2 2 Average Corruption 2 | . 2 2 Corruption Purged . | . . . Corruption Blocked . | . . . Effects 11 | . 5 6 Message Errors 2 | . . 2 Matter Fused 1 | . . 1 Heat Flow Errors 2 | . 1 1 Data Loss (minor) 4 | . 2 2 Misfires 1 | . 1 . Alerts 1 | . 1 . Overload Shots . | . . . Overflow Damage 69 | . 63 6 Projectiles 69 | . 63 6 Explosions . | . . . Melee . | . . . Knockbacks 17 | . 11 6 Impact . | . . . Kinetic 17 | . 11 6 Secondary . | . . . Self-Inflicted Damage . | . . . Shots . | . . . Rammed . | . . . Targets Rammed . | . . . Kicked . | . . . Crushed . | . . . Highest Temperature 418 | . 418 236 Average Temperature 100 | . 111 73 Received Heat Transfer 348 | . 219 129 Effects 10 | . 10 . Shutdowns 1 | . 1 . Energy Bleed 1 | . 1 . Interference 3 | . 3 . Matter Decay 1 | . 1 . Damage (major) 4 | . 4 . Siege Activations . | . . . Robots Corrupted . | . . . Combat Hostiles . | . . . Parts Fried . | . . . Impact Corruptions . | . . . Robots Melted . | . . . Combat Hostiles . | . . . Parts Melted . | . . . Heat Transferred . | . . . Parts Sabotaged . | . . . Parts Stolen . | . . . Parts Stripped . | . . . Power Chain Reactions . | . . . Alert | -11 -10 -10 ------- Run | Yrd Mat Min Peak Influence 351 | . 351 131 Initial . | . . . Average 84 | . 103 57 Maximum Alert Level 1 | . 1 . Low Security (%) 78 | 100 67 100 Level 1 21 | . 32 . Level 2 . | . . . Level 3 . | . . . Level 4 . | . . . Level 5 . | . . . High Security . | . . . Max Security . | . . . Squads Dispatched 1 | . 1 . Investigation . | . . . Extermination . | . . . Reinforcement 1 | . 1 . Assault . | . . . Garrison . | . . . Intercept . | . . . Searches Triggered . | . . . Construction Impeded . | . . . Haulers Reinforced . | . . . Active Scanning Responses . | . . . Cargo Convoy Interrupts . | . . . Stealth | -11 -10 -10 --------- Run | Yrd Mat Min Distress Signals 1 | . . 1 Communications Jammed . | . . . Distress Signals . | . . . Times Spotted 30 | . 21 9 Peak Tracking Total 8 | . 8 3 Tactical Retreats 1 | . 1 . Traps | -11 -10 -10 ------- Run | Yrd Mat Min Traps Triggered 1 | . 1 . Indirectly . | . . . Trap Hack Attempts . | . . . Triggered . | . . . Disarmed . | . . . Reprogrammed . | . . . Reused . | . . . Traps Extracted . | . . . Installed . | . . . Triggered . | . . . Machines | -11 -10 -10 ---------- Run | Yrd Mat Min Machines Disabled 1 | . 1 . Max in Single Turn 1 | . 1 . Machines Repaired . | . . . Machines Dismantled . | . . . Machines Sabotaged . | . . . Overloaded Fab Kills . | . . . Hacking | -11 -10 -10 --------- Run | Yrd Mat Min Machines Accessed 6 | . 6 . Terminals 6 | . 6 . Fabricators . | . . . Repair Stations . | . . . Recycling Units . | . . . Scanalyzers . | . . . Garrison Access . | . . . Total Hacks 16 | . 16 . Successful 5 | . 5 . Failed 11 | . 11 . Catastrophic 2 | . 2 . Database Lockouts . | . . . Manual 8 | . 8 . Terminals 16 | . 16 . Fabricators . | . . . Repair Stations . | . . . Recycling Units . | . . . Scanalyzers . | . . . Garrison Access . | . . . Terminal Hacks 5 | . 5 . Terminal Index 1 | . 1 . Unreport Threat 2 | . 2 . Hauler Manifests 2 | . 2 . Fabricator Hacks . | . . . Repair Station Hacks . | . . . Recycling Unit Hacks . | . . . Scanalyzer . | . . . Garrison Access Hacks . | . . . Unauthorized Hacks . | . . . Terminals . | . . . Fabricators . | . . . Repair Stations . | . . . Recycling Units . | . . . Scanalyzers . | . . . Garrison Access . | . . . Data Cores Recovered 1 | . 1 . Used . | . . . Hacking Detections 6 | . 6 . Full Trace Events 1 | . 1 . Feedback Events . | . . . Feedback Blocked . | . . . Robot Schematics Acquired . | . . . Robots Built . | . . . Authchips . | . . . Time . | . . . Total Robot Build Rating . | . . . Part Schematics Acquired . | . . . Parts Built . | . . . Authchips . | . . . Time . | . . . Total Part Build Rating . | . . . Parts Repaired . | . . . Time . | . . . Parts Recycled . | . . . Recycled Matter . | . . . Retrieved Matter . | . . . Retrieved Components . | . . . Parts Scanalyzed . | . . . Part Schematics Acquired . | . . . Parts Damaged . | . . . Bothacking | -11 -10 -10 ------------ Run | Yrd Mat Min Used RIF Installer . | . . . Robots Hacked . | . . . Non-combat . | . . . Combat . | . . . Robot Hacks Applied . | . . . Relay Couplers Released . | . . . Fabnet Peak Effective % . | . . . Robots Rewired . | . . . Allies Hacked . | . . . Hacks Repelled . | . . . Allies | -11 -10 -10 -------- Run | Yrd Mat Min Total Allies 3 | . . 3 Largest Group 3 | . . 3 Highest-Rated Group 40 | . . 40 Highest-Rated Ally 16 | . . 16 Total Orders . | . . . Ally Attacks 20 | . . 20 Total Damage 186 | . . 186 Kills 5 | . . 5 Allies Corrupted . | . . . Allies Melted . | . . . Intel | -11 -10 -10 ------- Run | Yrd Mat Min Robot Analysis Total . | . . . Derelict Logs Recovered 2 | . . 2 Drone Launches . | . . . Drone Recoveries . | . . . Exploration | -11 -10 -10 ------------- Run | Yrd Mat Min Turns Passed 2028 | 76 1313 639 Spaces Moved 1115 | 44 709 362 Core 5 | 5 . . Treads 1110 | 39 709 362 Legs . | . . . Wheels . | . . . Hover . | . . . Flight . | . . . Fastest Speed 50 | 50 160 160 Average Speed 159 | 147 160 160 Slowest Speed 160 | 160 160 160 Overloaded Moves . | . . . Propulsion Burnouts . | . . . Robots Hopped . | . . . Cave-ins Triggered . | . . . Exploration Rate (%) 54 | 3 93 67 Regions Visited 2 Branch Regions 1 Pre-discovered Areas . | . . . Known Exits Taken 1 | . 1 . Unknown Exits Taken 1 | 1 . . Scrap Searched . | . . . Spaces Dug . | . . . Terrain Destroyed 5 | . 5 . Melee . | . . . Projectile 5 | . 5 . AOE . | . . . Terrain Rammed . | . . . Walls Destroyed . | . . . Machines Disabled . | . . . Actions | -11 -10 -10 --------- Run | Yrd Mat Min Total 1230 | 53 788 389 Wait 18 | 4 12 2 Move 1113 | 43 708 362 Hop . | . . . Pick Up 4 | 1 3 . Fast Attach 7 | 4 3 . Attach 1 | 1 . . Detach . | . . . Swap 7 | . 5 2 Drop 3 | . 3 . Fire 66 | . 50 16 Melee . | . . . Ram . | . . . Kick . | . . . Crush . | . . . Escape Stasis . | . . . Rewire . | . . . Trap . | . . . Miscellaneous 11 | . 4 7 Route ------- -11/Scrapyard -10/Materials (discovered 3 exits: *Mat x2 / *Min) -10/Mines (discovered 2 exits: *Mat x2) History --------- Turn | Location | Event 1 | -11/Scrapyard | Upgraded with Propulsion slot (x1) 1 | -11/Scrapyard | Upgraded with Utility slot (x2) 1 | -11/Scrapyard | Upgraded with Weapon slot (x1) 8 | -11/Scrapyard | Discovered new exit (range 14) 77 | -11/Scrapyard | Entered Materials 316 | -10/Materials | Discovered new exit (range 16) 318 | -10/Materials | Build established: Mutant 430 | -10/Materials | Identified exit to Mines 574 | -10/Materials | Destroyed 7 combat bots 742 | -10/Materials | Reached level 2 812 | -10/Materials | Discovered new exit (range 17) 880 | -10/Materials | Identified exit to Materials 881 | -10/Materials | Build established: Skirmisher 1055 | -10/Materials | Discovered exit to Materials (range 18) 1390 | -10/Materials | Entered Mines 1437 | -10/Mines | Learned Materials garrison access intel 1446 | -10/Mines | Core integrity fell below 50% 1513 | -10/Mines | Assisted by bots powering up and referring to "LRC-V3" 1643 | -10/Mines | Assembled infested the area 1648 | -10/Mines | Assisted by a Guerilla fighting off Assembled 1781 | -10/Mines | Discovered exit to Materials (range 6) 1922 | -10/Mines | Reached level 3 1938 | -10/Mines | Core integrity fell below 20% 2006 | -10/Mines | Discovered exit to Materials (range 11) 2028 | -10/Mines | Joined a pair of Derelicts in attacking an 0b10 outpost 2029 | -10/Mines | Destroyed by Y-45 Defender with Heavy Assault Rifle Last Messages --------------- 01931_ D-53 Grenadier knocked back. 01934_ T-07 Excavator destroyed. 01934_ D-53 Grenadier destroyed. 01937_ The unstable cave ceiling collapses. 01937_ D-53 Grenadier knocked back. 01938_ The unstable cave ceiling collapses. 01940_ T-07 Excavator destroyed. 01940_ D-53 Grenadier knocked back. 01943_ D-53 Grenadier destroyed. 01949_ The unstable cave ceiling collapses. 01951_ Acquired 9 matter. 01952_ The unstable cave ceiling collapses. 01953_ Acquired 3 matter. 01954_ Acquired 9 matter. 01958_ The unstable cave ceiling collapses. 01966_ Acquired 19 matter. 02006_ EXIT=FOUND: MATERIALS 02028_ A derelict emerges from the shadows: "We've had our eye on this brand new outpost for a little while, just waiting for an opportunity to strike. Need some help?" Map ----- +----------------------------------------------------+ | ?????????????????####??### ???# #? | | ????????????????? #? ### ???# #? | | ????????????????? # ### ##??# #? | | ?????????????????# # #?######## #? | | ?????????????????# # ?????## ## | | ?????????????????# ## #????## # | | ?????????????????# ## #????# | | ?????????????????# #????# | | ?????????????????# !! ##???## # | | ?????????????????# ! ##???# ## ## | | ?????????######??# % #???# ## ###? | | ?????????# #??# %% x##?### ## #??? | | ?????????# #### ##### x #??? | | ?????????# ### ## # #### %% | | ?????????# #### ### # # #####?? | | ??????#### #??# # # # #????? | | ??????# #??# x ### # | | ??????# ## #??## x x= # | | ??????# #######???## ## | | ??????# #??######??## % ###? | | ??????# #?##"YY"#???## ## ##??? | | ??????# #?#|! !|????## # ##???? | | ??????# #?#!! /??????############????? | | ?????## #### ?#######??????????????? | | ?????# ##g/## #??????????????? | | ?????# g@ < #??????????????? | | ?????# #??????????????? | | ?????# #??????????????? | | ?????# #??????????????? | | ?????# #??????????????? | | ?????# #??????????????? | | ?????# #??????????????? | | ?????###################??????????????? | | ??????????????????????????????????????? | | ??????????????????????????????????????? | | ??????????????????????????????????????? | | ??????????????????????????????????????? | | ??????????????????????????????????????? | | ??????????????????????????????????????? | | ??????????????????????????????????????? | | ??????????????????????????????????????? | | ??????????????????????????????????????? | | | | | | | | | | | | | | | | | +----------------------------------------------------+ Best States ------------- Heat Dissipation 25 Energy Generation 10 Energy Capacity 250 Matter Stores 300 Matter Capacity 300 Sight Range 18 Robot Scan Range 32 Terrain Scan Density 10 Evasion (%) 40 Recoil Reduction 2 Item Schematics ----------------- None Robot Schematics ------------------ None Fabricated ------------ Nothing Alien Tech Used ----------------- None Achievements -------------- None Challenges ------------ None RPGLIKE | -11 -10 -10 --------- Run | Yrd Mat Min Levels Raised 2 | . 1 1 XP Earned 6394 | 3000 1730 1664 XP Spent 5900 | 2550 1850 1500 Upgrades 18 | 5 10 3 Propulsion Slot 1 | 1 . . Utility Slot 2 | 2 . . Weapon Slot 1 | 1 . . Inventory Capacity 2 | 1 1 . Sensor Range 9 | . 9 . Ranged Accuracy 3 | . . 3 Protomatter Created 64 | . 47 17 Integrity Restored 210 | . 87 123 Core 210 | . 87 123 Protomatter Decayed 34 | . . 34 Game ------ Seed EtherialBraceScrapsphere Manual? 0 Play Time 00:13:40 Cumulative 32.7 hours Start 2025.03.24 @ 12:36:03 End 2025.03.24 @ 12:47:34 Sessions 1 Manual Loads 0 Difficulty Rogue Special Mode Winter2019/RPGLIKE Game No. 55 Rogue 55 Adventurer 0 Explorer 0 Win Type - Total 0 Types 0/0/0/0/0/0/0/0/0 Lore% 13 Gallery% 25 Achievement% 28 Wizard Run 0 Options --------- Layout 0 ASCII 0 Keyboard 0 Movement Mouse Keybinds 0 Fullscreen 1 Font 24/Smallcaps Map View 76x56 Zoom Use 0% Tactical HUD 1 Map Filters NONE Filters NONE Steam 1 RUN: d1a3d8d1-a000-4a35-b7cb-3304efee3d2c